Cogmind - Beta 16.1 @@@ ROGUE MODE // 2026.03.08 @ 01:29:02 Player: TheSkyeDoctor Result: Destroyed by P-60 Hacker with Shock Rifle Performance ------------- Evolutions (1) 500 Regions Visited (4) 800 Robots Destroyed (51) 255 Value Destroyed (1975) 1975 Prototype IDs (0) 0 Alien Tech Used (0) 0 Bonus (1386) 1386 TOTAL SCORE: 4916 Bonus ------- High Alert Combat Kills 54 Follower Combat Kills 132 Entered Garrisons 200 Used RIF Installer 1000 Cogmind --------- Core Integrity 0/400 Matter 252/300 Energy 99/100 System Corruption 4% Temperature Cool (0) Movement Core (800) Ox15 Location -9/Garrison Parts ------- > --- POWER (1) -------- (None) > --- PROPULSION (2) --- (None) > --- UTILITY (4) ------ High-capacity Storage Unit Improved Targeting Computer Target Analyzer Hacking Suite > --- WEAPON (2) ------- Heavy Assault Rifle Maul > --- INVENTORY (20) --- Compact Wheel Improved Heat Sink Large Matter Pod (150) Structural Scanner Improved Targeting Computer Target Analyzer Shield Generator Hacking Suite Relay Coupler [NC] (23) Relay Coupler [Grunt] (28) Relay Coupler [Grunt] (25) Relay Coupler [Grunt] (22) Relay Coupler [Grunt] (22) Relay Coupler [Duelist] (26) Relay Coupler [Sentry] (21) Relay Coupler [Hunter] (12) Grenade Launcher Remote Datajack Peak State ------------ > --- POWER ------------ Light Nuclear Core > --- PROPULSION ------- Light Treads Light Treads > --- UTILITY ---------- Improved Heat Sink High-capacity Storage Unit Improved Targeting Computer Medium Armor Plating > --- WEAPON ----------- Heavy Assault Rifle Maul > --- INVENTORY -------- Light Treads Light Treads Light Treads Compact Wheel Improved Heat Sink Large Matter Pod Structural Scanner Improved Targeting Computer Light Armor Plating Shield Generator Hacking Suite Hacking Suite Light Assault Rifle Heavy Assault Rifle Grenade Launcher [Rating: 19] Favorites ----------- Power Light Ion Engine Engine Light Ion Engine Power Core Light Nuclear Core Propulsion Light Treads Treads Light Treads Utility High-capacity Storage Unit Device Improved Heat Sink Storage High-capacity Storage Unit Processor Improved Targeting Computer Hackware Hacking Suite Protection Light Armor Plating Weapon Beam Cannon Energy Cannon Beam Cannon Ballistic Gun Heavy Assault Rifle Launcher Grenade Launcher Impact Weapon Maul Build | -11 -10 -9 -9 -9 ------- Run | Yrd Mat Mat Sto Gar Slots Evolved 2 | . . 2 . . Power . | . . . . . Propulsion . | . . . . . Utility 2 | . . 2 . . Weapon . | . . . . . Parts Attached 33 | 7 3 5 3 15 Power 4 | 1 1 . 1 1 Engine 3 | 1 1 . 1 . Core 1 | . . . . 1 Reactor . | . . . . . Propulsion 7 | 2 . 2 . 3 Treads 7 | 2 . 2 . 3 Leg . | . . . . . Wheel . | . . . . . Hover . | . . . . . Flight . | . . . . . Utility 13 | 2 1 3 1 6 Device 3 | 1 . 2 . . Storage 3 | 1 1 1 . . Processor 2 | . . . . 2 Hackware 1 | . . . . 1 Protection 4 | . . . 1 3 Artifact . | . . . . . Weapon 9 | 2 1 . 1 5 Energy Gun . | . . . . . Energy Cannon 2 | . 1 . 1 . Ballistic Gun 5 | 2 . . . 3 Ballistic Cannon . | . . . . . Launcher 1 | . . . . 1 Special Weapon . | . . . . . Impact Weapon 1 | . . . . 1 Slashing Weapon . | . . . . . Piercing Weapon . | . . . . . Special Melee Weapon . | . . . . . Unidentified Prototypes . | . . . . . Parts Lost 22 | . 1 . 3 18 Power 4 | . 1 . 1 2 Propulsion 7 | . . . . 7 Utility 6 | . . . 1 5 Weapon 5 | . . . 1 4 Highest Loss Streak 4 | . 1 . 3 4 To Critical Strikes . | . . . . . Average Backups 12 | 2 6 9 14 14 Power . | . 1 1 . . Propulsion 3 | 1 2 3 5 2 Utility 6 | . 1 3 6 8 Weapon 1 | . 1 2 1 2 Tool/Special . | . . . . . Unused Backups 15 | . 1 . . 14 Power . | . . . . . Propulsion 2 | . 1 . . 1 Utility 11 | . . . . 11 Weapon 1 | . . . . 1 Tool/Special 1 | . . . . 1 Average Slot Usage (%) 95 | . 98 98 99 92 Engine 6 | . 12 11 10 1 Core 1 | . . . . 3 Treads 22 | . 28 22 22 21 Device 14 | . 14 31 24 7 Storage 11 | . 14 11 11 11 Processor 7 | . . . . 14 Hackware 2 | . . . . 3 Protection 5 | . . . 8 6 Energy Cannon 8 | . 13 11 19 2 Ballistic Gun 8 | . 14 11 2 8 Impact Weapon 5 | . . . . 10 Peak Build Rating 19 | 7 8 12 14 19 Average Rating 13 | 4 7 11 12 17 On Entrance 8 | . 7 8 12 14 Avg Prop Armor Cover (%) . | . . . . . Naked Turns . | . . . . . Heaviest Build 59 | 15 19 51 54 59 Greatest Support 40 | 40 40 40 40 40 Greatest Overweight (x) 3 | 3 . 1 1 1 Average Overweight (x) . | . . . 1 1 Largest Inventory Capacity 20 | 8 10 20 20 20 Average Capacity 17 | 7 8 15 20 20 Most Carried 20 | 3 10 13 17 20 Average Carried 12 | 2 6 9 14 14 Final Capacity 20 | 8 10 20 20 20 Final Carried 18 | 3 10 13 17 18 Class Distribution -------------------- 74% | Mutant 14% | Bothacker-Mutant 10% | Scavenger-Mutant Dominant Class ---------------- Mutant | -10/Materials Mutant | -9/Materials Mutant | -9/Storage Mutant | -9/Garrison Resources | -11 -10 -9 -9 -9 ----------- Run | Yrd Mat Mat Sto Gar Matter Collected 952 | 306 287 92 48 219 Remotely . | . . . . . Salvage Created 1610 | 94 347 211 466 492 Parts 103 | 13 26 14 25 25 Haulers Intercepted 1 | . . 1 . . Recyclers Shooed 1 | 1 . . . . Parts Field Recycled . | . . . . . Retrieved Matter . | . . . . . Parts Self-Destructed . | . . . . . Prevented . | . . . . . Parts Restored . | . . . . . Kills | -11 -10 -9 -9 -9 ------- Run | Yrd Mat Mat Sto Gar Combat Hostiles Destroyed 41 | . 12 3 10 16 Melee 3 | . . . . 3 Guns 9 | . 5 1 . 3 Cannons 23 | . 6 2 9 6 AOE 3 | . . . . 3 Classes Destroyed 10 | 2 4 3 . 1 Worker 1 | . 1 . . . Tunneler 3 | 3 . . . . Hauler 1 | . . 1 . . Recycler 1 | 1 . . . . Operator 1 | . . 1 . . Watcher 3 | . 2 . 1 . Swarmer 12 | . 9 . . 3 Grunt 21 | . 3 1 8 9 Sentry 7 | . . 2 2 3 Programmer 1 | . . . . 1 Best Kill Streak 6 | 2 6 2 4 4 Combat Bots Only 5 | . 5 1 4 4 Max Kills in Single Turn 2 | 1 2 1 1 2 Gunslinging . | . . . . . Exploded 2 | . . . . 2 Melee 1 | . . . . 1 Uniques/NPCs Destroyed . | . . . . . Combat | -11 -10 -9 -9 -9 -------- Run | Yrd Mat Mat Sto Gar Hostile Shots Fired 331 | . 62 15 45 209 Missed 101 | . 17 8 11 65 Hits 230 | . 45 7 34 144 Projectile 230 | . 45 7 34 144 Critical Strikes 7 | . . 1 2 4 Damage Taken 2969 | . 441 103 462 1963 Core 501 | . 91 . 62 348 Absorbed by Shields . | . . . . . Core Remaining (%) 81 | 100 63 . . . Volleys Fired 152 | 6 34 14 30 68 Largest 2 | 2 2 2 2 2 Hottest 120 | 40 80 80 120 120 Shots Fired 240 | 12 68 28 60 72 Gun 112 | 12 34 14 11 41 Cannon 124 | . 34 14 49 27 Launcher 4 | . . . . 4 Special . | . . . . . Kinetic 112 | 12 34 14 11 41 Thermal 124 | . 34 14 49 27 Explosive 4 | . . . . 4 Electromagnetic . | . . . . . Robot Hit Streak 13 | 3 8 8 12 13 Robot Miss Streak 6 | 2 6 4 3 4 Penetration Max . | . . . . . Secondary Targets . | . . . . . Shots Hit Robots 148 | 6 35 15 34 58 Core Hits 63 | 4 17 7 14 21 Critical Kills 3 | . 2 . 1 . Critical Parts Destroyed 4 | . . . . 4 Critical Strikes 7 | . 2 . 1 4 Meltdown 2 | . 1 . 1 . Destroy 2 | . 1 . . 1 Smash 3 | . . . . 3 Melee Attacks 21 | . . . . 21 Impact 21 | . . . . 21 Slashing . | . . . . . Piercing . | . . . . . Sneak Attacks . | . . . . . Combat Hostiles . | . . . . . Follow-up Attacks . | . . . . . Damage Inflicted 2814 | 88 567 235 550 1374 Guns 910 | 88 199 80 110 433 Cannons 1260 | . 368 155 440 297 Explosions 250 | . . . . 250 Melee 394 | . . . . 394 Ramming . | . . . . . Kinetic 910 | 88 199 80 110 433 Thermal 1260 | . 368 155 440 297 Explosive 250 | . . . . 250 Electromagnetic . | . . . . . Impact 394 | . . . . 394 Slashing . | . . . . . Piercing . | . . . . . Highest Corruption 4 | . . . . 4 Average Corruption 1 | . . . . 1 Corruption Purged . | . . . . . Corruption Blocked . | . . . . . Effects 7 | . . . . 7 Message Errors 1 | . . . . 1 Matter Fused 2 | . . . . 2 Heat Flow Errors 1 | . . . . 1 Energy Discharges 2 | . . . . 2 Data Loss (minor) 1 | . . . . 1 Overload Shots . | . . . . . Overflow Damage 98 | . . . . 98 Projectiles . | . . . . . Explosions . | . . . . . Melee 98 | . . . . 98 Knockbacks . | . . . . . Impact . | . . . . . Kinetic . | . . . . . Secondary . | . . . . . Self-Inflicted Damage 92 | . . . . 92 Shots 3 | . . . . 3 Rammed . | . . . . . Targets Rammed . | . . . . . Kicked . | . . . . . Crushed . | . . . . . Highest Temperature 186 | . 186 . 126 156 Average Temperature 46 | . 51 . 48 28 Received Heat Transfer 807 | . 102 63 216 426 Siege Activations . | . . . . . Martial Activations . | . . . . . Shielding Activations . | . . . . . Robots Disrupted . | . . . . . Combat Hostiles . | . . . . . Robots Corrupted 1 | . . . . 1 Combat Hostiles 1 | . . . . 1 Parts Fried 1 | . . . . 1 Impact Corruptions 4 | . . . . 4 Robots Melted 2 | . 1 . 1 . Combat Hostiles 2 | . 1 . 1 . Parts Melted 6 | . 1 . 3 2 Heat Transferred 2664 | . 777 333 925 629 Parts Sabotaged . | . . . . . Parts Stolen . | . . . . . Parts Stripped . | . . . . . Power Chain Reactions . | . . . . . Alert | -11 -10 -9 -9 -9 ------- Run | Yrd Mat Mat Sto Gar Maximum Alert Level 3 | . . . . 3 Low Security (%) 55 | 100 100 100 100 13 Level 1 10 | . . . . 19 Level 2 19 | . . . . 37 Level 3 14 | . . . . 28 Level 4 . | . . . . . Level 5 . | . . . . . High Security . | . . . . . Max Security . | . . . . . Peak Influence 903 | 5 152 78 126 903 Initial 56 | . . 56 3 . Average 273 | 1 50 43 24 501 Influence Increases 1876 | 20 356 92 325 1083 Destroy 0b10 Robot/C 880 | . 240 60 200 380 Destroy 0b10 Robot/NC 50 | 20 15 10 5 . Destroy Leader 138 | . 44 22 52 20 Allied During Kill 5 | . . . . 5 Successful Hack 39 | . 11 . 7 21 Disable Machine 30 | . . . 30 . Anti-Garrison Action 400 | . . . . 400 Destroy Structure 94 | . 1 . 1 92 Partial Spotted 15 | . 15 . . . Lose Combat Pursuer 225 | . 30 . 30 165 Influence Decreases 993 | 20 221 219 333 200 Entered New Map 84 | . . 79 5 . Time Decay 544 | 20 211 140 173 . Lost Part 200 | . 10 . 10 180 Lost Ally 30 | . . . 10 20 Purge Threat 135 | . . . 135 . Squads Dispatched 1 | . . . 1 . Investigation 1 | . . . 1 . Extermination . | . . . . . Reinforcement . | . . . . . Assault . | . . . . . Garrison . | . . . . . Intercept . | . . . . . Searches Triggered . | . . . . . Construction Impeded . | . . . . . Haulers Reinforced . | . . . . . Active Scanning Responses . | . . . . . Cargo Convoy Interrupts . | . . . . . Stealth | -11 -10 -9 -9 -9 --------- Run | Yrd Mat Mat Sto Gar Distress Signals 4 | . 1 3 . . Communications Jammed . | . . . . . Distress Signals . | . . . . . Times Spotted 62 | . 22 7 12 21 Peak Tracking Total 7 | . 4 2 6 7 Tactical Retreats 7 | . 1 . 1 5 Traps | -11 -10 -9 -9 -9 ------- Run | Yrd Mat Mat Sto Gar Traps Triggered 2 | . . . . 2 Indirectly . | . . . . . Trap Hack Attempts . | . . . . . Triggered . | . . . . . Disarmed . | . . . . . Reprogrammed . | . . . . . Reused . | . . . . . Traps Extracted . | . . . . . Installed . | . . . . . Triggered . | . . . . . Machines | -11 -10 -9 -9 -9 ---------- Run | Yrd Mat Mat Sto Gar Machines Disabled 7 | . . . 2 5 Max in Single Turn 2 | . . . 1 2 Garrison Relay 2 | . . . . 2 Phase Generator 1 | . . . . 1 Machines Repaired . | . . . . . Machines Dismantled . | . . . . . Machines Sabotaged . | . . . . . Overloaded Fab Kills . | . . . . . Hacking | -11 -10 -9 -9 -9 --------- Run | Yrd Mat Mat Sto Gar Machines Accessed 12 | . 3 1 5 3 Terminals 10 | . 2 1 4 3 Fabricators . | . . . . . Repair Stations . | . . . . . Recycling Units 1 | . 1 . . . Scanalyzers . | . . . . . Garrison Access 1 | . . . 1 . Total Hacks 25 | . 6 2 13 4 Successful 15 | . 4 . 9 2 Failed 10 | . 2 2 4 2 Catastrophic 1 | . . . . 1 Database Lockouts . | . . . . . Manual 13 | . 5 2 6 . Terminals 23 | . 5 2 12 4 Fabricators . | . . . . . Repair Stations . | . . . . . Recycling Units 1 | . 1 . . . Scanalyzers . | . . . . . Garrison Access 1 | . . . 1 . Terminal Hacks 6 | . . . 4 2 Open Door 2 | . . . 1 1 Branch Access Points 1 | . . . 1 . Unreport Threat 2 | . . . 2 . Garrison Registry 1 | . . . . 1 Fabricator Hacks . | . . . . . Repair Station Hacks . | . . . . . Recycling Unit Hacks . | . . . . . Scanalyzer . | . . . . . Garrison Access Hacks 1 | . . . 1 . Unlock Access 1 | . . . 1 . Unauthorized Hacks 8 | . 4 . 4 . Terminals 8 | . 4 . 4 . Assimilate 3 | . 2 . 1 . Botnet 5 | . 2 . 3 . Fabricators . | . . . . . Repair Stations . | . . . . . Recycling Units . | . . . . . Scanalyzers . | . . . . . Garrison Access . | . . . . . Data Cores Recovered 1 | . . 1 . . Used . | . . . . . Hacking Detections 8 | . 2 1 3 2 Full Trace Events 2 | . . . 1 1 Feedback Events . | . . . . . Feedback Blocked . | . . . . . Robot Schematics Acquired . | . . . . . Robots Built . | . . . . . Authchips . | . . . . . Time . | . . . . . Total Robot Build Rating . | . . . . . Part Schematics Acquired . | . . . . . Parts Built . | . . . . . Authchips . | . . . . . Time . | . . . . . Total Part Build Rating . | . . . . . Part Studies Acquired . | . . . . . Parts Repaired . | . . . . . Time . | . . . . . Parts Recycled . | . . . . . Recycled Matter . | . . . . . Retrieved Matter . | . . . . . Retrieved Components . | . . . . . Parts Scanalyzed . | . . . . . Part Schematics Acquired . | . . . . . Parts Damaged . | . . . . . Bothacking | -11 -10 -9 -9 -9 ------------ Run | Yrd Mat Mat Sto Gar Used RIF Installer 2 | . . . . 2 Patrol Navigation 1 | . . . . 1 Robots Hacked . | . . . . . Non-combat . | . . . . . Combat . | . . . . . Robot Hacks Applied . | . . . . . Relay Couplers Released 9 | . . . . 9 Machine Destruction 9 | . . . . 9 Fabnet Peak Effective % . | . . . . . Robots Rewired . | . . . . . Allies Hacked . | . . . . . Hacks Repelled . | . . . . . Allies | -11 -10 -9 -9 -9 -------- Run | Yrd Mat Mat Sto Gar Total Allies 2 | . 1 . . 1 Largest Group 1 | . 1 1 1 1 Highest-Rated Group 39 | . 10 10 10 39 Highest-Rated Ally 39 | . 10 10 10 39 Total Orders . | . . . . . Ally Attacks 40 | . . . . 40 Total Damage 363 | . . . . 363 Kills 3 | . . . . 3 Allies Corrupted . | . . . . . Allies Melted . | . . . . . Intel | -11 -10 -9 -9 -9 ------- Run | Yrd Mat Mat Sto Gar Active Infowar (turns) 1755 | 45 641 288 742 39 Structural 1067 | . . 286 742 39 Seismic 1142 | 45 641 288 168 . Robot Analysis Total . | . . . . . Derelict Logs Recovered . | . . . . . Drone Launches . | . . . . . Drone Recoveries . | . . . . . Exploration | -11 -10 -9 -9 -9 ------------- Run | Yrd Mat Mat Sto Gar Turns Passed 3771 | 166 641 288 742 1934 Spaces Moved 1467 | 82 314 119 257 695 Core 23 | 23 . . . . Treads 1444 | 59 314 119 257 695 Legs . | . . . . . Wheels . | . . . . . Hover . | . . . . . Flight . | . . . . . Fastest Speed 50 | 50 160 160 240 240 Average Speed 215 | 164 160 198 240 240 Slowest Speed 240 | 200 160 240 240 240 Overloaded Moves . | . . . . . Propulsion Burnouts . | . . . . . Robots Hopped . | . . . . . Potential Cave-ins . | . . . . . Cave-ins Triggered . | . . . . . Exploration Rate (%) 34 | 4 45 13 33 75 Regions Visited 4 Branch Regions 1 Pre-discovered Areas . | . . . . . Known Exits Taken 1 | . . . 1 . Unknown Exits Taken 3 | 1 1 1 . . Scrap Searched . | . . . . . Spaces Dug . | . . . . . Terrain Destroyed 79 | . . . . 79 Melee . | . . . . . Projectile . | . . . . . AOE 79 | . . . . 79 Terrain Rammed . | . . . . . Walls Destroyed . | . . . . . Machines Disabled . | . . . . . Actions | -11 -10 -9 -9 -9 --------- Run | Yrd Mat Mat Sto Gar Total 1797 | 98 385 143 323 848 Wait 76 | . 22 . 27 27 Move 1463 | 81 313 118 256 695 Hop . | . . . . . Pick Up 41 | 4 9 4 7 17 Fast Attach 7 | 6 1 . . . Attach 21 | 1 . 2 3 15 Detach . | . . . . . Swap 8 | . 3 3 . 2 Drop 6 | . 3 2 . 1 Fire 152 | 6 34 14 30 68 Melee 21 | . . . . 21 Ram . | . . . . . Kick . | . . . . . Crush . | . . . . . Escape Stasis 2 | . . . . 2 Rewire . | . . . . . Trap . | . . . . . Miscellaneous . | . . . . . Route ------- -11/Scrapyard -10/Materials (discovered 2 exits: *Mat / [*Min]) -9/Materials (discovered 2 exits: [*Min] / *Sto) -9/Storage (discovered 2 exits: Rec / Gar) -9/Garrison (discovered 3 exits: [*Mat x3]) History --------- Turn | Location | Event 51 | -11/Scrapyard | Discovered new exit (range 16) 167 | -11/Scrapyard | Entered Materials 313 | -10/Materials | Build established: Mutant 349 | -10/Materials | Discovered new exit (range 15) 721 | -10/Materials | Discovered new exit (range 6) 767 | -10/Materials | Derelicts attacked the area 808 | -10/Materials | Entered another Materials area 808 | -9/Materials | Accompanied by 1 ally 808 | -9/Materials | Evolved 2 slots: Utility x2 954 | -9/Materials | Discovered new exit (range 12) 1015 | -9/Materials | Discovered new exit (range 16) 1096 | -9/Materials | Entered Storage 1096 | -9/Storage | Accompanied by 1 ally 1206 | -9/Storage | Identified exit to Recycling 1308 | -9/Storage | Lost 3 parts (1p1u1w) 1835 | -9/Storage | Identified exit to Garrison 1838 | -9/Storage | Entered Garrison 2005 | -9/Garrison | Discovered new exit (range 42) 2005 | -9/Garrison | Discovered new exit (range 59) 2005 | -9/Garrison | Discovered new exit (range 34) 2086 | -9/Garrison | Triggered checkpoint 2174 | -9/Garrison | Lost 4 parts (1p1n1u1w) 2370 | -9/Garrison | Core integrity fell below 50% 2411 | -9/Garrison | Rescued a captive Derelict 2434 | -9/Garrison | Triggered checkpoint 2717 | -9/Garrison | Phase Generator disabled 2738 | -9/Garrison | Core integrity fell below 20% 2776 | -9/Garrison | Lost 4 parts (1p1n1u1w) 2922 | -9/Garrison | Installed Relay Interface Framework 3198 | -9/Garrison | Expanded RIF knowledge: Patrol Navigation 3220 | -9/Garrison | Garrison Relay disabled 3516 | -9/Garrison | Triggered checkpoint 3528 | -9/Garrison | Build established: Bothacker-Mutant 3720 | -9/Garrison | Garrison Relay disabled 3772 | -9/Garrison | Destroyed by P-60 Hacker with Shock Rifle Last Messages --------------- 03720_ Relay Coupler [NC] tumbles out of relay unit. 03720_ Relay Coupler [Grunt] tumbles out of relay unit. 03720_ Relay Coupler [Sentry] tumbles out of relay unit. 03720_ Relay Coupler [Grunt] tumbles out of relay unit. 03724_ System corrupted: Matter fused (-6). 03725_ Acquired Relay Coupler [Sentry]. 03736_ Acquired Relay Coupler [Grunt]. 03754_ Lgt. Treads destroyed. 03759_ Y-45 Defender suffers critical hit (Destroy). 03759_ Destroyed Lgt. Treads. 03760_ SHP4XCAKH%GWTMC7/X0SGL BBY0IFDYOC 03761_ Hvy. Assault Rifle destroyed. 03761_ Critical hit (Burn: +37). 03767_ Lgt. Treads destroyed. 03768_ Y-45 Defender destroyed. Map ----- +----------------------------------------------------+ | ?????????????????????????????????????????????????? | | ?????????????????????????????????????????????????? | | ?????????????????????????????????????????????????? | | ?????????????????????????????????????????????????? | | ?????#############???????????????????????????????? | | ?????####"""""####???????????????????????????????? | | ?????## #"""""# ##???????????????????????????????? | | ?????## # # ##???????????????????????????????? | | ?????## # # ##???????????????????????????????# | | ?????## "" "" ##???????????????????????????????# | | ?????## " " ##???????????????????????????????# | | ?????#" " " "#???????????????????????????????# | | ?????#" " " "#????????????????????????????#### | | ?????#" " ^ " "#????????????????????????????# | | ?????#" #^ # "#????????????????????????????# ## | | ?????#"" # # ""#?????????????????????????####### | | ?????### # # ###?????????????????????????# # | | ?????##### #####????????????????????????##"""""# | | ??????#### ####???????????????????????### | | ?????????## ##??????????????????????????# # | | ??????????# #???????????????????????????# ### ## | | ??????????# #?#####??#######????????????# ##"""""# | | ??????????# #?# #??#""! "#????????????# ######## | | ??????????# ### ##### ##????????????# #??????? | | ??????????# !% !p #????????????# #??????? | | ??????????# ! %[ @ #????????????# #??????? | | ??????????# ############ #????????????# #??????? | | ??????????# T#?????????# #????????????# #??????? | | ??????????# ##?????????# #????????????########## | | ########### ############ #######??????# | | ^ ^ #??????# | | ^ ^ #??????# | | ^ ^ #??????# ###### | | ############ ############# ### #??????# #?# #? | | ???????????# #???????????# #?# #??????# #?# #? | | ???????????# #???????????# #?# #??????# ### #? | | ???????????# #???????????# #?# #??????# # #? | | ???????????# ############# #?# ######## #####? | | ???????????# #?# ## ## #????? | | ???????????############### #?# ##""""## #????? | | ?????????????????????????# ### ###### | | ?????????????????????????#% | | ?????????????????????????##### " | | ?????????????????????????????# ## ## ###### | | ???????????????????????????### ## ## ###??? | | ???????????????????????????# % #??? | | ???????????????????????????# = #??? | | ???????????????????????????# % [ #??? | | ???????????????????????????# % % #??? | | ?????????####??????????????### ^^## ## = ###??? | +----------------------------------------------------+ Best States ------------- Heat Dissipation 42 Energy Generation 14 Energy Capacity 250 Matter Stores 300 Matter Capacity 300 Sight Range 16 Terrain Scan Density 10 Armor Coverage 225 Evasion (%) 40 Targeting Accuracy 6 Target Analysis 5 Recoil Reduction 2 Offensive Hacking 10 Item Schematics ----------------- None Robot Schematics ------------------ None Fabricated ------------ Nothing Repaired ---------- Nothing Studied --------- None Alien Tech Used ----------------- None Achievements -------------- You Will Be Upgraded Challenges ------------ None Game ------ Seed BombStormGun Manual? 0 Play Time 00:24:29 Cumulative 55.9 hours Start 2026.03.08 @ 01:07:03 End 2026.03.08 @ 01:29:02 Sessions 1 Manual Loads 0 Difficulty Rogue Special Mode None Game No. 131 Rogue 131 Adventurer 0 Explorer 0 Win Type - Total 0 Types 0/0/0/0/0/0/0/0/0/0 Lore% 30 Gallery% 39 Achievement% 31 Wizard Run 0 Options --------- Layout 2 ASCII 0 Keyboard 1 Movement Arrows Keybinds 0 Fullscreen 1 Font 24/Smallcaps Map View 50x44 Zoom Use 0% Tactical HUD 1 Map Filters NONE Filters NONE Steam 1 RUN: 78e317b0-a263-4548-ba38-c0f74ce366ad